fUST/lending_fUST_20241013
["ID","MTS","AMOUNT","RATE_DAILY","PERIOD"]
[340180761,1728780642720,-1647.11,0.00045,30]
[340180762,1728780642731,-159.0,0.00045,90]
[340180763,1728780642741,-391.0,0.00045,90]
[340180764,1728780642752,-483.2143733,0.00045,120]
[340180765,1728780642762,-201.0,0.00045,90]
[340180766,1728780642773,-316.0,0.00045,90]
[340180768,1728780642784,-150.112233,0.000451,14]
[340180770,1728780642794,-378.31682,0.00045105,120]
[340180771,1728780642804,-1150.0,0.00045252,7]
[340180773,1728780642813,-150.112233,0.000454,11]
[340180774,1728780642824,-8375.66,0.000454,30]
[340180775,1728780642836,-3615.12138852,0.00045488,2]
[340180777,1728780642850,-160.0,0.00045525,8]
[340180778,1728780642860,-159.0,0.00045685,90]
[340180779,1728780642869,-391.0,0.00045685,90]
[340180780,1728780642880,-316.0,0.00045685,90]
[340180781,1728780642892,-150.112233,0.000457,15]
[340180783,1728780642904,-1250.0,0.000458,7]
[340180784,1728780642914,-1097.0,0.00045889,5]
[340180785,1728780642927,-391.0,0.00045959,90]
[340180786,1728780642937,-1508.52504937,0.00045978,10]
[340180787,1728780642947,-2500.0,0.00045978,10]
[340180788,1728780642957,-150.112233,0.00046,12]
[340180789,1728780642969,-391.0,0.00046233,90]
[340180790,1728780642980,-150.112233,0.000463,12]
[340180791,1728780643050,-1019.38177333,0.00046348,7]
[340180792,1728780643061,-20000.0,0.00046366,4]
[340180793,1728780643073,-570.168071,0.00046429,2]
[340180794,1728780643083,-155.229875,0.00046467,120]
[340180795,1728780643094,-151.0,0.00046467,7]
[340180796,1728780643105,-151.0,0.00046467,100]
[340180797,1728780643114,-151.0,0.00046467,120]
[340180798,1728780643125,-151.0,0.00046467,120]
[340180799,1728780643135,-151.0,0.00046467,120]
[340180800,1728780643146,-2256.11349,0.00046467,120]
[340180801,1728780643157,-2256.11349,0.00046467,120]
[340180802,1728780643169,-151.0,0.00046467,120]
[340180803,1728780643180,-193.220998,0.00046467,120]
[340180804,1728780643190,-151.0,0.00046467,120]
[340180805,1728780643200,-151.0,0.00046467,3]
[340180806,1728780643210,-151.0,0.00046467,120]
[340180807,1728780643221,-199.265432,0.00046467,120]
[340180808,1728780643233,-199.265432,0.00046467,120]
[340180809,1728780643243,-151.0,0.00046467,120]
[340180810,1728780643255,-151.0,0.00046467,120]
[340180811,1728780643265,-151.0,0.00046467,120]
[340180812,1728780643275,-151.0,0.00046467,120]
[340180813,1728780643286,-152.683372,0.00046467,120]
[340180814,1728780643296,-152.683372,0.00046467,120]
[340180815,1728780643306,-169.872,0.00046467,120]
[340180816,1728780643317,-169.872,0.00046467,120]
[340180817,1728780643327,-151.0,0.00046468,120]
[340180818,1728780643338,-281.109371,0.00046478,120]
[340180819,1728780643349,-151.0,0.00046487,7]
[340180820,1728780643361,-151.0,0.00046487,100]
[340180821,1728780643371,-151.0,0.00046497,120]
[340180822,1728780643382,-151.033243,0.00046497,120]
[340180823,1728780643393,-151.0,0.00046497,120]
[340180824,1728780643404,-2256.11349,0.00046497,120]
[340180825,1728780643416,-2256.11349,0.00046497,120]
[340180826,1728780643426,-193.220998,0.00046497,120]
[340180827,1728780643437,-151.0,0.00046497,120]
[340180828,1728780643449,-151.0,0.00046497,120]
[340180829,1728780643458,-151.0,0.00046497,120]
[340180830,1728780643469,-151.0,0.00046497,120]
[340180831,1728780643480,-156.627996,0.00046497,120]
[340180832,1728780643489,-151.0,0.00046497,120]
[340180833,1728780643500,-343.717041,0.00046497,120]
[340180834,1728780643509,-343.717041,0.00046497,120]
[340180835,1728780643521,-783.067854,0.00046497,120]
[340180836,1728780643531,-151.0,0.00046497,120]
[340180837,1728780643542,-783.067854,0.00046497,120]
[340180838,1728780643553,-151.0,0.00046497,120]
[340180839,1728780643564,-151.0,0.00046497,120]
[340180840,1728780643575,-151.0,0.00046497,120]
[340180841,1728780643584,-151.0,0.00046497,120]
[340180842,1728780643593,-151.0,0.00046497,120]
[340180843,1728780643604,-151.0,0.00046497,120]
[340180844,1728780643614,-163.648406,0.00046497,2]
[340180845,1728780643625,-237.623881,0.00046497,120]
[340180846,1728780643636,-237.623881,0.00046497,120]
[340180847,1728780643647,-151.0,0.00046497,120]
[340180848,1728780643657,-151.0,0.00046497,120]
[340180849,1728780643667,-151.0,0.00046497,120]
[340180850,1728780643677,-874.325202,0.00046497,60]
[340180851,1728780643688,-874.325202,0.00046497,60]
[340180852,1728780643698,-151.0,0.00046497,120]
[340180853,1728780643707,-314.425852,0.00046497,120]
[340180854,1728780643718,-228.188111,0.00046497,120]
[340180855,1728780643728,-314.425852,0.00046497,120]
[340180856,1728780643738,-228.188111,0.00046497,120]
[340180857,1728780643748,-151.0,0.00046497,120]
[340180858,1728780643761,-466.281525,0.00046497,120]
[340180859,1728780643772,-599.58187,0.00046497,2]
[340180860,1728780643782,-466.281525,0.00046497,120]
[340180861,1728780643794,-599.58187,0.00046497,2]
[340180862,1728780643805,-151.0,0.00046497,120]
[340180863,1728780643817,-151.0,0.00046497,120]
[340180864,1728780643829,-151.0,0.00046497,120]
[340180865,1728780643841,-50645.51527995,0.00046497,2]
[340180866,1728780643852,-151.0,0.00046498,30]
[340180867,1728780643864,-151.0,0.00046498,120]
[340180868,1728780643876,-151.449402,0.00046498,120]
[340180869,1728780643885,-151.0,0.00046498,120]
[340180870,1728780643896,-151.0,0.00046498,120]
[340180871,1728780643906,-151.0,0.00046498,120]
[340180872,1728780643917,-151.0,0.00046498,120]
[340180873,1728780643928,-151.0,0.00046498,120]
[340180874,1728780643938,-263.018657,0.00046498,120]
[340180875,1728780643947,-263.018657,0.00046498,120]
[340180876,1728780643958,-151.0,0.00046498,120]
[340180877,1728780643968,-151.0,0.00046498,120]
[340180878,1728780643979,-391.0,0.00046507,90]
[340180879,1728780643990,-151.0,0.00046587,30]
[340180880,1728780644001,-151.0,0.00046587,120]
[340180881,1728780644011,-209.620082,0.00046587,120]
[340180882,1728780644021,-198.959952,0.00046587,120]
[340180883,1728780644032,-214.261011,0.00046587,120]
[340180884,1728780644043,-214.261011,0.00046587,120]
[340180885,1728780644054,-151.0,0.00046587,120]
[340180886,1728780644064,-151.0,0.00046587,120]
[340180887,1728780644075,-151.0,0.00046587,120]
[340180888,1728780644087,-151.0,0.00046587,120]
[340180889,1728780644098,-263.018657,0.00046587,120]
[340180890,1728780644109,-263.018657,0.00046587,120]
[340180891,1728780644120,-151.0,0.00046587,120]
[340180892,1728780644131,-151.0,0.00046587,120]
[340180893,1728780644140,-151.0,0.00046607,120]
[340180894,1728780644149,-151.0,0.00046607,120]
[340180895,1728780644158,-181.51788808,0.00046655,2]
[340180896,1728780644167,-477.90908157,0.00046655,2]
[340180897,1728780644176,-160.0,0.00046677,9]
[340180898,1728780644186,-161.76498392,0.00046677,5]
[340180899,1728780644195,-321.9195119,0.00046685,90]
[340180900,1728780644204,-150.0,0.000467,2]
[340180901,1728780644213,-2500.0,0.00046778,7]
[340180902,1728780644222,-2500.0,0.00046778,10]
[340180903,1728780644232,-1860.84,0.000469,30]
[340180904,1728780644245,-1647.11,0.000469,30]
[340180905,1728780644255,-300.0,0.000469,25]
[340180906,1728780644266,-2309.81949234,0.0004704,120]
[340180907,1728780644276,-151.0,0.000472,30]
[340180908,1728780644286,-151.0,0.000472,7]
[340180909,1728780644295,-151.0,0.000472,100]
[340180910,1728780644304,-151.0,0.000472,120]
[340180911,1728780644314,-151.0,0.000472,3]
[340180912,1728780644326,-199.265432,0.000472,120]
[340180913,1728780644337,-199.265432,0.000472,120]
[340180914,1728780644350,-151.0,0.000472,120]
[340180915,1728780644360,-151.0,0.000472,120]
[340180916,1728780644371,-151.0,0.000472,120]
[340180917,1728780644380,-156.492054,0.000472,120]
[340180918,1728780644390,-151.0,0.000472,120]
[340180919,1728780644398,-343.717041,0.000472,120]
[340180920,1728780644407,-343.717041,0.000472,120]
[340180921,1728780644417,-783.067854,0.000472,120]
[340180922,1728780644426,-151.0,0.000472,120]
[340180923,1728780644436,-783.067854,0.000472,120]
[340180924,1728780644446,-151.0,0.000472,120]
[340180925,1728780644456,-151.0,0.000472,120]
[340180926,1728780644465,-151.0,0.000472,120]
[340180927,1728780644533,-151.0,0.000472,120]
[340180928,1728780644542,-264.694131,0.000472,120]
[340180929,1728780644553,-63876.29677897,0.000472,120]
[340180930,1728780644565,-63876.29677895,0.000472,120]
[340180931,1728780644576,-63876.29677895,0.000472,120]
[340180932,1728780644587,-203.760353,0.000472,120]
[340180933,1728780644599,-151.0,0.000472,120]
[340180934,1728780644609,-151.0,0.000472,120]
[340180935,1728780644620,-152.683372,0.000472,120]
[340180936,1728780644630,-152.683372,0.000472,120]
[340180937,1728780644642,-169.872,0.000472,120]
[340180938,1728780644653,-151.0,0.000472,120]
[340180939,1728780644663,-169.872,0.000472,120]
[340180940,1728780644674,-150.0,0.00047293,2]
[340180941,1728780644685,-526.0,0.00047293,2]
[340180942,1728780644695,-1157.0,0.00047293,2]
[340180943,1728780644704,-632.0,0.00047293,2]
[340180944,1728780644713,-150.0,0.00047293,2]
[340180945,1728780644723,-175.60335327,0.00047562,120]
[340180946,1728780644731,-150.112233,0.000476,10]
[340180947,1728780644740,-8375.66,0.000476,30]
[340180948,1728780644750,-159.0,0.00047682,90]
[340180949,1728780644759,-391.0,0.00047682,90]
[340180950,1728780644768,-316.0,0.00047682,90]
[340180951,1728780644778,-150.0,0.000477,2]
[340180952,1728780644787,-150.112233,0.000478,12]
[340180953,1728780644797,-10008.39833259,0.00047926,28]
[340180954,1728780644806,-4781.24811231,0.00047973,14]
[340180955,1728780644815,-26819.45045131,0.00048,120]
[340180956,1728780645375,-154.47903594,0.000375,40]
[340180968,1728780652532,157.0,0.0003187,2]
[340180978,1728780739301,500.0,0.0003,30]
[340180989,1728781625144,-194.94761786,0.0003,30]
[340180991,1728781637501,-4845.0659184,0.00030408,2]
[340180992,1728781637527,-251.01,0.000315,2]
[340180993,1728781637552,-3000.0,0.0003183,2]
[340180994,1728781637576,-400.0,0.00031897,2]
[340180995,1728781637701,-400.0,0.00031897,2]
[340180996,1728781637727,-1753.01763104,0.00031898,2]
[340180997,1728781637751,-2677.3494522,0.00031899,2]
[340180998,1728781637776,-4628.65308008,0.00031991,2]
[340180999,1728781643106,-564.46882731,0.00031991,2]
[340181000,1728781651101,-475.91251946,0.00031991,2]
[340181002,1728781746161,-161.497522,0.0003065,2]
[340181003,1728781746183,-150.46976767,0.00031459,2]
[340181004,1728781746207,-250.0,0.00031542,2]
[340181005,1728781746232,-170.808673,0.00031559,2]
[340181006,1728781746257,-250.0,0.00031628,2]
[340181007,1728781746281,-250.0,0.00031715,2]
[340181008,1728781746307,-250.0,0.00031801,2]
[340181009,1728781746332,-250.0,0.00031888,2]
[340181010,1728781746357,-250.0,0.00031974,2]
[340181011,1728781746381,-400.0,0.00032001,2]
[340181012,1728781746406,-400.0,0.00032001,2]
[340181013,1728781746431,-10883.3287794,0.00032002,2]
[340181014,1728781750453,-14016.6712206,0.00032002,2]
[340181015,1728781750477,-161.497522,0.0003202,2]
[340181016,1728781750499,-250.0,0.00032061,2]
[340181017,1728781750520,-250.0,0.00032147,2]
[340181018,1728781750543,-250.0,0.00032234,2]
[340181019,1728781750568,-250.0,0.0003232,2]
[340181020,1728781750589,-250.0,0.00032407,2]
[340181021,1728781750611,-250.0,0.00032493,2]
[340181022,1728781750634,-250.0,0.0003258,2]
[340181023,1728781750656,-250.0,0.00032666,2]
[340181024,1728781750678,-250.0,0.00032753,2]
[340181025,1728781750700,-250.0,0.00032839,2]
[340181026,1728781750723,-250.91307842,0.00032877,2]
[340181027,1728781750745,-250.0,0.00032926,2]
[340181028,1728781750767,-250.0,0.00033012,2]
[340181029,1728781750789,-250.0,0.00033099,2]
[340181030,1728781750811,-250.0,0.00033185,2]
[340181031,1728781750835,-560.0,0.00034419,2]
[340181032,1728781750856,-1111.0,0.00034849,120]
[340181033,1728781750883,-195.0,0.00035202,2]
[340181034,1728781750907,-195.385,0.00035245,41]
[340181035,1728781750931,-500.0,0.00035257,7]
[340181036,1728781750953,-500.0,0.00035257,7]
[340181037,1728781750976,-500.0,0.00035257,7]
[340181038,1728781750999,-500.0,0.00035257,7]
[340181039,1728781751020,-500.0,0.00035257,7]
[340181040,1728781751041,-500.0,0.00035257,7]
[340181041,1728781751063,-500.0,0.00035257,7]
[340181042,1728781751084,-373.15787598,0.00035257,7]
[340181043,1728781751106,-489.90016805,0.00035257,7]
[340181044,1728781751128,-500.0,0.00035257,7]
[340181045,1728781751149,-500.0,0.00035257,7]
[340181046,1728781751171,-500.0,0.00035257,7]
[340181047,1728781751193,-500.0,0.00035257,7]
[340181048,1728781751215,-500.0,0.00035257,7]
[340181049,1728781751237,-500.0,0.00035257,7]
[340181050,1728781751258,-500.0,0.00035257,7]
[340181051,1728781751281,-500.0,0.00035257,7]
[340181052,1728781751399,-500.0,0.00035257,7]
[340181053,1728781751424,-500.0,0.00035257,7]
[340181054,1728781751450,-589.72288931,0.00035257,7]
[340181055,1728781751472,-56.38325853,0.00035257,7]
[340181056,1728781758091,-302.42545213,0.00035081,2]
[340181057,1728781758113,-443.61674147,0.00035257,7]
[340181058,1728781758135,-500.0,0.00035257,7]
[340181059,1728781758157,-500.0,0.00035257,7]
[340181060,1728781758179,-596.98243208,0.00035257,7]
[340181061,1728781758201,-500.0,0.00035257,7]
[340181062,1728781758223,-500.0,0.00035257,7]
[340181063,1728781758245,-500.0,0.00035257,7]
[340181064,1728781758267,-500.0,0.00035257,7]
[340181065,1728781758288,-500.0,0.00035257,7]
[340181066,1728781758309,-500.0,0.00035257,7]
[340181067,1728781758330,-168.249506,0.0003529,2]
[340181068,1728781759874,276.42625854,0.0003192,2]
[340181069,1728781774109,-308.24858825,0.0003679,5]
[340181070,1728781774132,-183.8113729,0.00036822,2]
[340181071,1728781774153,-209.3186916,0.00036908,14]
[340181072,1728781774174,-415.24617883,0.0003702,2]
[340181073,1728781790536,592.7214198,0.00031698,2]
[340181090,1728781832272,-5546.61965453,0.00037378,2]
[340181091,1728781832282,-304.64403456,0.00037388,2]
[340181092,1728781832292,-400.0,0.00037467,2]
[340181093,1728781832303,-1723.56,0.00037468,10]
[340181094,1728781832315,-500.0,0.00037473,5]
[340181095,1728781832326,-547.57246299,0.00037477,15]
[340181096,1728781832338,-435.91671711,0.00037477,15]
[340181097,1728781832349,-500.0,0.00037477,15]
[340181098,1728781832361,-216.09779945,0.00037477,15]
[340181099,1728781832371,-224.08296523,0.00037477,15]
[340181100,1728781832384,-332.92277237,0.00037477,15]
[340181101,1728781832400,-14176.43221476,0.00037478,5]
[340181106,1728781838335,-500.0,0.00037477,15]
[340181107,1728781838344,-621.08032103,0.00037477,15]
[340181108,1728781838354,-560.31546245,0.00037477,15]
[340181109,1728781838363,-500.0,0.00037477,15]
[340181110,1728781838372,-560.31546245,0.00037477,15]
[340181111,1728781838381,-288.55360356,0.00037477,15]
[340181112,1728781838391,-560.31546245,0.00037477,15]
[340181113,1728781838400,-474.17186479,0.00037477,15]
[340181114,1728781838410,-560.31546245,0.00037477,15]
[340181115,1728781838418,-560.31546245,0.00037477,15]
[340181116,1728781838428,-560.31546245,0.00037477,15]
[340181117,1728781838437,-560.31546245,0.00037477,15]
[340181118,1728781838446,-560.31546245,0.00037477,15]
[340181119,1728781838455,-560.31546245,0.00037477,15]
[340181120,1728781838475,-560.31546245,0.00037477,15]
[340181121,1728781838488,-560.31546245,0.00037477,15]
[340181122,1728781838499,-560.31546245,0.00037477,15]
[340181123,1728781838510,-560.31546245,0.00037477,15]
[340181124,1728781838523,-560.31546245,0.00037477,15]
[340181125,1728781838535,-560.31546245,0.00037477,15]
[340181126,1728781838546,-560.31546245,0.00037477,15]
[340181127,1728781838558,-560.31546245,0.00037477,15]
[340181128,1728781838572,-560.31546245,0.00037477,15]
[340181129,1728781838583,-560.31546245,0.00037477,15]
[340181130,1728781838594,-560.31546245,0.00037477,15]
[340181131,1728781838605,-560.31546245,0.00037477,15]
[340181132,1728781838616,-560.31546245,0.00037477,15]
[340181133,1728781838628,-560.31546245,0.00037477,15]
[340181134,1728781838642,-560.31546245,0.00037477,15]
[340181135,1728781838652,-560.31546245,0.00037477,15]
[340181136,1728781838664,-560.31546245,0.00037477,15]
[340181137,1728781838676,-560.31546245,0.00037477,15]
[340181138,1728781838688,-560.31546245,0.00037477,15]
[340181139,1728781838700,-560.31546245,0.00037477,15]
[340181140,1728781838713,-560.31546245,0.00037477,15]
[340181141,1728781838724,-560.31546245,0.00037477,15]
[340181142,1728781838737,-560.31546245,0.00037477,15]
[340181143,1728781838747,-560.31546245,0.00037477,15]
[340181144,1728781838759,-560.31546245,0.00037477,15]
[340181145,1728781838770,-560.31546245,0.00037477,15]
[340181146,1728781838780,-560.31546245,0.00037477,15]
[340181147,1728781838791,-560.31546245,0.00037477,15]
[340181148,1728781838801,-560.31546245,0.00037477,15]
[340181149,1728781838812,-560.31546245,0.00037477,15]
[340181150,1728781838825,-560.31546245,0.00037477,15]
[340181151,1728781838836,-560.31546245,0.00037477,15]
[340181152,1728781838848,-560.31546245,0.00037477,15]
[340181153,1728781838861,-560.31546245,0.00037477,15]
[340181154,1728781838873,-560.31546245,0.00037477,15]
[340181155,1728781838883,-560.31546245,0.00037477,15]
[340181156,1728781838896,-560.31546245,0.00037477,15]
[340181157,1728781838908,-57498.68730459,0.00037478,5]
[340181179,1728781841057,-83476.05095165,0.00037478,5]
[340181180,1728781841069,-245964.098571,0.00037478,5]
[340181181,1728781841079,-209.3186916,0.00037478,14]
[340181182,1728781841089,-4000.0,0.000375,40]
[340181183,1728781841099,-232726.755706,0.00038469,5]
[340181184,1728781841110,-245964.098571,0.00038469,5]
[340181185,1728781841119,-504.09472035,0.00038473,5]
[340181186,1728781841128,-500.0,0.00038473,5]
[340181187,1728781841140,-500.0,0.00038473,5]
[340181188,1728781841149,-500.0,0.00038473,5]
[340181189,1728781841158,-500.0,0.00038473,5]
[340181190,1728781841168,-1501.39,0.000385,30]
[340181191,1728781841179,-1364.12,0.000385,30]
[340181192,1728781841190,-304.64403455,0.00038636,2]
[340181193,1728781841202,-232.92383586,0.00038795,7]
[340181194,1728781841211,-929.92893177,0.00038842,5]
[340181195,1728781841220,-8864.42,0.000398,30]
[340181196,1728781841230,-1000.0,0.00039842,5]
[340181197,1728781841240,-1000.0,0.00039842,5]
[340181198,1728781841252,-1000.0,0.00039842,5]
[340181199,1728781841262,-304.64403455,0.00039883,2]
[340181200,1728781841274,-5000.0,0.0004,50]
[340181201,1728781841284,-343.144508,0.0004,2]
[340181202,1728781841294,-1000.0,0.0004,30]
[340181203,1728781841307,-1000.0,0.0004,30]
[340181204,1728781841318,-1000.0,0.0004,30]
[340181205,1728781841328,-1000.0,0.0004,30]
[340181206,1728781841338,-1000.0,0.0004,30]
[340181207,1728781841348,-1000.0,0.0004,30]
[340181208,1728781841358,-242.0,0.0004,30]
[340181209,1728781841368,-1000.0,0.0004,30]
[340181210,1728781841378,-1000.0,0.0004,30]
[340181211,1728781841388,-1000.0,0.0004,30]
[340181212,1728781841398,-1000.0,0.0004,30]
[340181213,1728781841408,-743.0,0.0004,30]
[340181214,1728781841420,-560.0,0.0004007,5]
[340181215,1728781841430,-312.7090709,0.00040767,21]
[340181216,1728781841441,-151.0,0.00040855,14]
[340181217,1728781841452,-151.0,0.00040855,14]
[340181218,1728781841462,-150.0,0.000409,45]
[340181219,1728781841473,-151.0,0.00040982,14]
[340181220,1728781841487,-151.0,0.00040982,14]
[340181221,1728781841497,-151.0,0.00040982,14]
[340181222,1728781841509,-151.0,0.00040982,14]
[340181223,1728781841520,-304.64403455,0.00041131,2]
[340181224,1728781841532,-5546.61965451,0.0004131,28]
[340181225,1728781841543,-1500.0,0.00041846,7]
[340181226,1728781841554,-1500.0,0.00041846,10]
[340181227,1728781841635,-304.64403455,0.00042378,2]
[340181228,1728781841655,-805.05238214,0.00042478,10]
[340181229,1728781841666,-252.63160163,0.00042478,10]
[340181230,1728781841675,-500.0,0.00042478,10]
[340181231,1728781841684,-5800.0,0.000425,60]
[340181232,1728781841694,-278.74945837,0.0004274,30]
[340181233,1728781841703,-783.0,0.00042854,5]
[340181234,1728781841712,-1501.39,0.000431,30]
[340181235,1728781841722,-1364.12,0.000431,30]
[340181236,1728781841731,-160.0,0.00043473,3]
[340181237,1728781841741,-8864.42,0.000435,30]
[340181238,1728781841751,-517.30587211,0.00044187,7]
[340181239,1728781841761,-418.5066737,0.00044187,10]
[340181240,1728781841771,-184.1048779,0.00044712,14]
[340181241,1728781841780,-2787.68927011,0.0004489,2]
[340181242,1728781841791,-150.0,0.00044965,2]
[340181243,1728781841800,-150.0,0.00044965,2]
[340181244,1728781841810,-526.0,0.00044965,2]
[340181245,1728781841819,-1157.0,0.00044965,2]
[340181246,1728781841828,-632.0,0.00044965,2]
[340181247,1728781841837,-500.0,0.00044973,10]
[340181248,1728781841846,-500.0,0.00044973,10]
[340181249,1728781841855,-159.0,0.00045,90]
[340181250,1728781841864,-14303.0,0.00045,30]
[340181251,1728781841874,-587.0,0.00045,90]
[340181252,1728781841884,-343.144508,0.00045105,120]
[340181253,1728781841894,-4203.8909834,0.00045241,28]
[340181264,1728781843538,-1311.09693888,0.00045241,28]
[340181272,1728781846618,-31.63173223,0.00045241,28]
[340181273,1728781846627,-159.0,0.00045685,90]
[340181274,1728781846637,-1097.0,0.00045832,5]
[340181275,1728781846647,-1000.0,0.00046342,10]
[340181276,1728781846657,-3084.04334922,0.000464,2]
[340181277,1728781852318,1834.66554549,0.00025,120]
[340181278,1728781861635,300.50993715,0.00025,120]
[340181279,1728781883057,1668.6966746,0.00036459,2]
[340181281,1728781943154,500.0,0.0003,30]
[340181282,1728781943491,500.0,0.0003,30]
[340181283,1728781943529,500.0,0.0003,30]
[340181284,1728781943705,500.0,0.0003,30]
[340181285,1728781943829,500.0,0.00029,2]
[340181286,1728781944035,500.0,0.0003,30]
[340181287,1728781944145,500.0,0.00029,2]
[340181288,1728781944302,500.0,0.0003,30]
[340181289,1728781944359,500.0,0.0003,30]
[340181290,1728781944392,500.0,0.00029,2]
[340181291,1728781944647,500.0,0.00029,2]
[340181292,1728781944701,500.0,0.0003,30]
[340181293,1728781944777,500.0,0.00029,2]
[340181294,1728781945026,500.0,0.0003,30]
[340181295,1728781945381,500.0,0.00029,2]
[340181296,1728781945728,500.0,0.00029,2]
[340181297,1728781946059,500.0,0.00029,2]
[340181298,1728781950846,500.0,0.0003,30]
[340181299,1728781951203,500.0,0.0003,30]
[340181300,1728781951560,500.0,0.0003,30]
[340181301,1728781951889,500.0,0.0003,30]
[340181302,1728781953108,500.0,0.00029,2]
[340181303,1728781953540,500.0,0.00029,2]
[340181314,1728782731161,-500.0,0.00029,2]
[340181315,1728782731183,-500.0,0.00029,2]
[340181316,1728782731204,-500.0,0.00029,2]
[340181317,1728782731224,-163.42985854,0.000299,2]
[340181318,1728782731245,-13.57712954,0.00029999,2]
[340181319,1728782827122,-287.0,0.00029999,2]
[340181320,1728782827151,-300.0,0.00029999,2]
[340181321,1728782827174,-500.0,0.0003,30]
[340181322,1728782827196,-500.0,0.0003,30]
[340181323,1728782827224,-500.0,0.0003,30]
[340181324,1728782827246,-395.40356606,0.0003,30]
[340181325,1728782829119,-104.59643394,0.0003,30]
[340181326,1728782829146,-367.08229855,0.0003,30]
[340181328,1728782836099,-132.91770145,0.0003,30]
[340181329,1728782836120,-163.42985854,0.00030949,2]
[340181330,1728782836146,-92.56851385,0.00031049,2]
[340181331,1728782844153,-150.25149415,0.00031049,2]
[340181332,1728782844180,-242.820008,0.00031134,2]
[340181333,1728782844201,-242.820008,0.00031219,2]
[340181334,1728782844223,-242.820008,0.00031304,2]
[340181335,1728782844329,-242.820008,0.0003139,2]
[340181336,1728782844352,-242.820008,0.00031475,2]
[340181337,1728782844374,-242.820008,0.0003156,2]
[340181338,1728782844396,-242.820008,0.00031645,2]
[340181339,1728782844418,-242.820008,0.0003173,2]
[340181340,1728782844439,-242.820008,0.00031815,2]
[340181341,1728782844462,-242.820008,0.000319,2]
[340181342,1728782844486,-242.820008,0.00031986,2]
[340181343,1728782844508,-242.820008,0.00032071,2]
[340181344,1728782844530,-242.820008,0.00032156,2]
[340181345,1728782844551,-242.820008,0.00032241,2]
[340181346,1728782844573,-242.820008,0.00032326,2]
[340181347,1728782844593,-159.46557694,0.00032332,2]
[340181357,1728782913792,11479.08329913,0.0002,2]
[340181358,1728782914705,10124.17680258,0.0002,2]
[340181359,1728782920079,10079.52840699,0.0002,2]
[340181360,1728782921171,2462.11793601,0.0002,2]
[340181366,1728782946120,-8712.3278467,0.00025,2]
[340181367,1728782946143,-300.0,0.00025089,2]
[340181368,1728782946168,-75737.3548328,0.0002509,2]
[340181369,1728782946191,-420.0,0.00027177,2]
[340181370,1728782946218,-500.0,0.0003,30]
[340181371,1728782946243,-500.0,0.0003,30]
[340181372,1728782946267,-170.8086732,0.00030982,2]
[340181373,1728782946291,-537.780366,0.00031254,2]
[340181374,1728782946313,-537.780366,0.00031939,2]
[340181375,1728782946343,-242.820008,0.00032411,2]
[340181376,1728782946369,-242.820008,0.00032497,2]
[340181377,1728782946396,-242.820008,0.00032582,2]
[340181378,1728782946417,-537.780366,0.00032624,2]
[340181379,1728782946445,-242.820008,0.00032667,2]
[340181380,1728782946468,-167.17605888,0.00032877,2]
[340181381,1728782946499,-174.276971,0.00033925,2]